fUSD/lending_fUSD_20240409
["ID","MTS","AMOUNT","RATE_DAILY","PERIOD"]
[321982847,1712673041755,-4379.96,0.00019547,2]
[321982848,1712673041765,-2396.01,0.00019547,2]
[321982849,1712673041775,-544.56,0.00019547,2]
[321982850,1712673041785,-3950.62,0.00019547,2]
[321982851,1712673041794,-2732.07,0.00019547,2]
[321982852,1712673041803,-812.02,0.00019547,2]
[321982853,1712673041812,-13075.79,0.00019547,2]
[321982854,1712673041822,-5025.59,0.00019547,2]
[321982855,1712673041832,-5881.29,0.00019547,2]
[321982856,1712673041842,-3356.15,0.00019547,2]
[321982857,1712673041851,-1175.72,0.00019547,2]
[321982858,1712673041861,-2071.18,0.00019547,2]
[321982859,1712673041870,-2057.16,0.00019547,2]
[321982860,1712673041879,-2715.79,0.00019547,2]
[321982861,1712673041895,-5613.49,0.00019547,2]
[321982862,1712673041904,-3545.98834293,0.00019547,2]
[321982863,1712673041913,-2200.96,0.00019547,2]
[321982864,1712673041923,-1782.44,0.00019547,2]
[321982865,1712673041932,-5371.9879,0.00019547,2]
[321982866,1712673041942,-158.18,0.00019637,2]
[321982867,1712673041952,-500.0,0.00019647,2]
[321982868,1712673041961,-500.0,0.00019647,2]
[321982869,1712673041970,-500.0,0.00019647,2]
[321982870,1712673041981,-500.0,0.00019647,2]
[321982871,1712673041990,-500.0,0.00019647,2]
[321982872,1712673041999,-635.68,0.00019647,2]
[321982873,1712673042009,-1123.94,0.00019647,2]
[321982874,1712673042018,-631.8,0.00019647,2]
[321982875,1712673042028,-823.54,0.00019647,2]
[321982876,1712673042037,-500.0,0.00019647,2]
[321982877,1712673042047,-500.0,0.00019647,2]
[321982878,1712673042056,-500.0,0.00019647,2]
[321982879,1712673042066,-596.75,0.00019647,2]
[321982880,1712673042076,-500.0,0.00019647,2]
[321982881,1712673042087,-933.78,0.00019647,2]
[321982882,1712673042097,-500.0,0.00019647,2]
[321982883,1712673042107,-1111.73,0.00019647,2]
[321982884,1712673042116,-852.6,0.00019647,2]
[321982885,1712673042126,-663.39,0.00019647,2]
[321982886,1712673042135,-1221.45,0.00019647,2]
[321982887,1712673042150,-627.38,0.00019647,2]
[321982888,1712673042160,-657.38,0.00019647,2]
[321982889,1712673042169,-1292.14,0.00019647,2]
[321982890,1712673042179,-536.62,0.00019647,2]
[321982891,1712673042189,-832.11,0.00019647,2]
[321982892,1712673042198,-500.0,0.00019647,2]
[321982893,1712673042208,-923.79,0.00019647,2]
[321982894,1712673042218,-897.1,0.00019647,2]
[321982895,1712673042227,-500.0,0.00019647,2]
[321982896,1712673042237,-1078.41,0.00019647,2]
[321982897,1712673042247,-551.12,0.00019647,2]
[321982898,1712673042257,-603.54,0.00019647,2]
[321982899,1712673042267,-843.29,0.00019647,2]
[321982900,1712673042276,-791.5,0.00019647,2]
[321982901,1712673042286,-500.0,0.00019647,2]
[321982902,1712673042296,-2333.52,0.00019647,2]
[321982903,1712673042305,-1043.44,0.00019647,2]
[321982904,1712673042315,-500.0,0.00019647,2]
[321982905,1712673042324,-747.53,0.00019647,2]
[321982906,1712673042334,-500.0,0.00019647,2]
[321982907,1712673042343,-500.0,0.00019647,2]
[321982908,1712673042352,-500.0,0.00019647,2]
[321982909,1712673042362,-500.0,0.00019647,2]
[321982910,1712673042372,-963.48,0.00019647,2]
[321982911,1712673042382,-790.33,0.00019647,2]
[321982912,1712673042395,-500.0,0.00019647,2]
[321982913,1712673042405,-500.0,0.00019647,2]
[321982914,1712673042414,-500.0,0.00019647,2]
[321982915,1712673042423,-1616.37,0.00019647,2]
[321982916,1712673042433,-1471.69,0.00019647,2]
[321982917,1712673042442,-635.6,0.00019647,2]
[321982918,1712673042452,-500.0,0.00019647,2]
[321982919,1712673042461,-1427.59,0.00019647,2]
[321982920,1712673042471,-500.0,0.00019647,2]
[321982921,1712673042482,-500.0,0.00019647,2]
[321982922,1712673042491,-817.26,0.00019647,2]
[321982923,1712673042500,-957.96,0.00019647,2]
[321982924,1712673042510,-469.18,0.00019647,2]
[321982925,1712673042520,-1704.1,0.00019647,2]
[321982926,1712673042529,-500.0,0.00019647,2]
[321982927,1712673042539,-1290.55,0.00019647,2]
[321982928,1712673042548,-160.39350406,0.00019647,2]
[321982929,1712673042558,-848.38,0.00019647,2]
[321982930,1712673042569,-1229.91,0.00019647,2]
[321982931,1712673042582,-2561.61,0.00019647,2]
[321982932,1712673042592,-1345.92,0.00019647,2]
[321982933,1712673042601,-984.35,0.00019647,2]
[321982934,1712673042611,-1438.9,0.00019647,2]
[321982935,1712673042621,-768.81,0.00019647,2]
[321982936,1712673042630,-7729.52,0.00019647,2]
[321982937,1712673042643,-1018.62,0.00019647,2]
[321982938,1712673042652,-4481.77,0.00019647,2]
[321982939,1712673042662,-1870.76,0.00019647,2]
[321982940,1712673042672,-500.0,0.00019647,2]
[321982941,1712673042682,-11328.73,0.00019647,2]
[321982942,1712673042694,-1713.02,0.00019647,2]
[321982943,1712673042704,-7732.93,0.00019647,2]
[321982944,1712673042713,-1559.45,0.00019647,2]
[321982945,1712673042723,-506.61,0.00019647,2]
[321982946,1712673042733,-4574.26,0.00019647,2]
[321982947,1712673042743,-4021.44,0.00019647,2]
[321982948,1712673042752,-1482.86,0.00019647,2]
[321982949,1712673042761,-7547.68,0.00019647,2]
[321982950,1712673042771,-5257.69,0.00019647,2]
[321982952,1712673042781,-500.0,0.00019647,2]
[321982954,1712673042791,-2888.04,0.00019647,2]
[321982956,1712673042800,-1138.87,0.00019647,2]
[321982958,1712673042810,-16169.01,0.00019647,2]
[321982960,1712673042819,-1282.9,0.00019647,2]
[321982962,1712673042828,-12358.6,0.00019647,2]
[321982964,1712673042838,-540.87,0.00019647,2]
[321982966,1712673042847,-500.0,0.00019647,2]
[321982967,1712673042856,-642.16,0.00019647,2]
[321982968,1712673042865,-37418.55,0.00019647,2]
[321982969,1712673042874,-500.0,0.00019647,2]
[321982970,1712673042884,-1291.87,0.00019647,2]
[321982971,1712673042898,-1250.53,0.00019647,2]
[321982972,1712673042907,-975.68,0.00019647,2]
[321982973,1712673042916,-1560.97,0.00019647,2]
[321982974,1712673042926,-1507.52,0.00019647,2]
[321982975,1712673042935,-595.02,0.00019647,2]
[321982976,1712673042944,-2112.88,0.00019647,2]
[321982977,1712673042954,-4404.54,0.00019647,2]
[321982978,1712673042963,-1392.75,0.00019647,2]
[321982979,1712673042972,-1587.93,0.00019647,2]
[321982980,1712673042981,-3322.41,0.00019647,2]
[321982981,1712673042990,-500.0,0.00019647,2]
[321982982,1712673042999,-1075.26,0.00019647,2]
[321982983,1712673043009,-1041.42,0.00019647,2]
[321982984,1712673043018,-887.34,0.00019648,2]
[321982985,1712673043027,-500.0,0.00019648,2]
[321982986,1712673043037,-500.0,0.00019648,2]
[321982987,1712673043046,-877.52,0.00019648,2]
[321982988,1712673043055,-589.79,0.00019648,2]
[321982989,1712673043064,-500.0,0.00019648,2]
[321982990,1712673043074,-970.17,0.00019648,2]
[321982991,1712673043083,-500.0,0.00019648,2]
[321982992,1712673043093,-642.9,0.00019648,2]
[321982993,1712673043102,-500.0,0.00019648,2]
[321982994,1712673043111,-500.0,0.00019648,2]
[321982995,1712673043120,-500.0,0.00019648,2]
[321982996,1712673043129,-693.74,0.00019648,2]
[321982997,1712673043140,-500.0,0.00019648,2]
[321982998,1712673043149,-500.0,0.00019648,2]
[321982999,1712673043158,-1000.78,0.00019648,2]
[321983000,1712673043167,-738.19,0.00019648,2]
[321983001,1712673043177,-500.0,0.00019648,2]
[321983002,1712673043186,-926.32,0.00019648,2]
[321983003,1712673043195,-1221.81,0.00019648,2]
[321983004,1712673043204,-948.87,0.00019648,2]
[321983005,1712673043214,-1565.19,0.00019648,2]
[321983006,1712673043223,-1044.52,0.00019648,2]
[321983007,1712673043232,-500.0,0.00019648,2]
[321983008,1712673043241,-529.42,0.00019648,2]
[321983009,1712673043250,-334.20290049,0.00019648,2]
[321983010,1712673043259,-1184.17,0.00019648,2]
[321983011,1712673043268,-500.0,0.00019648,2]
[321983012,1712673043277,-500.0,0.00019648,2]
[321983013,1712673043287,-856.68,0.00019648,2]
[321983014,1712673043296,-888.7,0.00019648,2]
[321983015,1712673043306,-736.06,0.00019648,2]
[321983016,1712673043315,-1079.72,0.00019648,2]
[321983017,1712673043324,-1842.93,0.00019648,2]
[321983018,1712673043333,-852.25,0.00019648,2]
[321983019,1712673043343,-848.52,0.00019648,2]
[321983020,1712673043352,-500.0,0.00019648,2]
[321983021,1712673043361,-500.0,0.00019648,2]
[321983022,1712673043371,-820.14,0.00019648,2]
[321983023,1712673043381,-1248.3,0.00019648,2]
[321983024,1712673043393,-500.0,0.00019648,2]
[321983025,1712673043403,-500.0,0.00019648,2]
[321983026,1712673043413,-792.88,0.00019648,2]
[321983027,1712673043422,-500.0,0.00019648,2]
[321983028,1712673043432,-500.0,0.00019648,2]
[321983029,1712673043442,-766.08,0.00019648,2]
[321983030,1712673043451,-805.39,0.00019648,2]
[321983031,1712673043460,-1311.8,0.00019648,2]
[321983032,1712673043469,-1313.68,0.00019648,2]
[321983033,1712673043479,-500.0,0.00019648,2]
[321983034,1712673043490,-871.9,0.00019648,2]
[321983035,1712673043499,-826.01,0.00019648,2]
[321983036,1712673043508,-2742.0,0.00019648,2]
[321983037,1712673043518,-500.0,0.00019648,2]
[321983038,1712673043527,-626.09,0.00019648,2]
[321983040,1712673043536,-2697.91,0.00019648,2]
[321983042,1712673043545,-1687.99,0.00019648,2]
[321983044,1712673043555,-500.0,0.00019648,2]
[321983045,1712673043563,-553.48,0.00019648,2]
[321983047,1712673043577,-500.0,0.00019648,2]
[321983049,1712673043586,-3926.99,0.00019648,2]
[321983051,1712673043595,-500.0,0.00019648,2]
[321983052,1712673043605,-1500.84,0.00019648,2]
[321983053,1712673043616,-3651.81,0.00019648,2]
[321983054,1712673043625,-630.13,0.00019648,2]
[321983055,1712673043635,-1900.17,0.00019648,2]
[321983056,1712673043650,-1932.83,0.00019648,2]
[321983057,1712673043661,-603.43,0.00019648,2]
[321983058,1712673043670,-1264.43,0.00019648,2]
[321983059,1712673043679,-1336.89,0.00019648,2]
[321983060,1712673043688,-934.19,0.00019648,2]
[321983061,1712673043698,-2062.8,0.00019648,2]
[321983062,1712673043707,-753.81,0.00019648,2]
[321983063,1712673043717,-1354.19,0.00019648,2]
[321983064,1712673043726,-673.6,0.00019648,2]
[321983065,1712673043735,-2423.23,0.00019648,2]
[321983066,1712673043745,-1181.24,0.00019648,2]
[321983067,1712673043754,-595.38,0.00019648,2]
[321983068,1712673043764,-2644.37,0.00019648,2]
[321983069,1712673043773,-500.0,0.00019648,2]
[321983070,1712673043782,-993.27,0.00019648,2]
[321983071,1712673043791,-2432.9,0.00019648,2]
[321983072,1712673043801,-552.64,0.00019648,2]
[321983073,1712673043811,-1156.89,0.00019648,2]
[321983074,1712673043820,-2628.34,0.00019648,2]
[321983075,1712673043830,-500.0,0.00019648,2]
[321983076,1712673043839,-4227.79,0.00019648,2]
[321983077,1712673043848,-1328.43,0.00019648,2]
[321983078,1712673043857,-7242.96,0.00019648,2]
[321983079,1712673043867,-167.41,0.00019675,2]
[321983080,1712673043876,-325.84537089,0.00019684,2]
[321983081,1712673043885,-5045.3383894,0.0001972,2]
[321983082,1712673043899,-313.49955063,0.00019747,2]
[321983083,1712673043908,-98081.02909115,0.00019757,2]
[321983084,1712673043917,-1910.87,0.00019766,2]
[321983085,1712673043926,-388.7283438,0.00019811,2]
[321983086,1712673043935,-1576.6,0.0001982,2]
[321983087,1712673043943,-2700.17,0.0001982,2]
[321983088,1712673043952,-2425.12,0.0001982,2]
[321983089,1712673043961,-1918.07,0.0001982,2]
[321983090,1712673043970,-794.51,0.0001982,2]
[321983091,1712673043979,-1947.33,0.0001982,2]
[321983092,1712673043988,-3051.36,0.0001982,2]
[321983093,1712673043997,-6007.64,0.0001982,2]
[321983094,1712673044006,-2264.34,0.0001982,2]
[321983095,1712673044015,-3048.79,0.0001982,2]
[321983096,1712673044023,-15934.7,0.0001982,2]
[321983097,1712673044032,-1471.95,0.0001982,2]
[321983098,1712673044040,-3339.2,0.0001982,2]
[321983099,1712673044049,-1679.13,0.0001982,2]
[321983100,1712673044058,-4614.19,0.0001982,2]
[321983101,1712673044067,-2229.03,0.0001982,2]
[321983102,1712673044077,-4421.25,0.0001982,2]
[321983103,1712673044086,-3729.88,0.0001982,2]
[321983104,1712673044096,-1994.58,0.0001982,2]
[321983105,1712673044105,-500.0,0.0001982,2]
[321983106,1712673044114,-500.0,0.0001982,2]
[321983107,1712673044123,-1941.65,0.0001982,2]
[321983108,1712673044132,-1858.23,0.0001982,2]
[321983109,1712673044147,-500.0,0.0001982,2]
[321983110,1712673044156,-500.0,0.0001982,2]
[321983111,1712673044165,-500.0,0.0001982,2]
[321983112,1712673044174,-500.0,0.0001982,2]
[321983113,1712673044183,-500.0,0.0001982,2]
[321983114,1712673044193,-1577.22,0.0001982,2]
[321983115,1712673044202,-180.15,0.00019821,2]
[321983116,1712673044211,-495.98544749,0.00019821,2]
[321983117,1712673044221,-5017.78,0.00019821,2]
[321983118,1712673044230,-500.0,0.00019821,2]
[321983119,1712673044240,-1684.11,0.00019821,2]
[321983120,1712673044249,-798.07,0.00019821,2]
[321983121,1712673044258,-1293.13,0.00019821,2]
[321983122,1712673044267,-43443.91,0.00019821,2]
[321983123,1712673044277,-1249.49,0.00019821,2]
[321983124,1712673044287,-3678.23,0.00019821,2]
[321983125,1712673044298,-2164.97,0.00019821,2]
[321983126,1712673044308,-2609.47,0.00019821,2]
[321983127,1712673044318,-2043.36,0.00019821,2]
[321983128,1712673044328,-1084.68,0.00019821,2]
[321983129,1712673044337,-4379.96,0.00019821,2]
[321983130,1712673044347,-2396.01,0.00019821,2]
[321983131,1712673044356,-544.56,0.00019821,2]
[321983132,1712673044365,-3950.62,0.00019821,2]
[321983133,1712673044375,-2732.07,0.00019821,2]
[321983134,1712673044384,-812.02,0.00019821,2]
[321983135,1712673044398,-13075.79,0.00019821,2]
[321983136,1712673044408,-5025.59,0.00019821,2]
[321983137,1712673044417,-5881.29,0.00019821,2]
[321983138,1712673044427,-3356.15,0.00019821,2]
[321983139,1712673044436,-1175.72,0.00019821,2]
[321983140,1712673044445,-2071.18,0.00019821,2]
[321983141,1712673044454,-2057.16,0.00019821,2]
[321983142,1712673044463,-2715.79,0.00019821,2]
[321983143,1712673044475,-5613.49,0.00019821,2]
[321983144,1712673044484,-2200.96,0.00019821,2]
[321983145,1712673044493,-1782.44,0.00019821,2]
[321983146,1712673044502,-158.8754925,0.000199,2]
[321983147,1712673044512,-500.0,0.00019921,2]
[321983148,1712673044522,-500.0,0.00019921,2]
[321983149,1712673044532,-500.0,0.00019921,2]
[321983150,1712673044541,-500.0,0.00019921,2]
[321983151,1712673044551,-500.0,0.00019921,2]
[321983152,1712673044560,-500.0,0.00019921,2]
[321983153,1712673044570,-500.0,0.00019921,2]
[321983154,1712673044584,-500.0,0.00019921,2]
[321983155,1712673044593,-500.0,0.00019921,2]
[321983156,1712673044603,-564.41,0.00019921,2]
[321983157,1712673044614,-500.0,0.00019921,2]
[321983158,1712673044623,-500.0,0.00019921,2]
[321983159,1712673044632,-500.0,0.00019921,2]
[321983160,1712673044645,-500.0,0.00019921,2]
[321983161,1712673044655,-331.66075861,0.00019921,2]
[321983162,1712673044665,-500.0,0.00019921,2]
[321983163,1712673044675,-528.03,0.00019921,2]
[321983164,1712673044929,-359.6391156,0.00019921,2]
[321983165,1712673044968,-500.0,0.00019921,2]
[321983166,1712673044978,-500.0,0.00019921,2]
[321983167,1712673044988,-500.0,0.00019921,2]
[321983168,1712673044998,-500.0,0.00019921,2]
[321983169,1712673045007,-500.0,0.00019921,2]
[321983170,1712673045018,-500.0,0.00019921,2]
[321983171,1712673045027,-500.0,0.00019921,2]
[321983172,1712673045038,-500.0,0.00019921,2]
[321983173,1712673045048,-500.0,0.00019921,2]
[321983174,1712673045057,-500.0,0.00019921,2]
[321983175,1712673045066,-500.0,0.00019921,2]
[321983176,1712673045076,-500.0,0.00019921,2]
[321983177,1712673045085,-500.0,0.00019921,2]
[321983178,1712673045095,-500.0,0.00019921,2]
[321983179,1712673045105,-500.0,0.00019921,2]
[321983180,1712673045114,-500.0,0.00019921,2]
[321983181,1712673045124,-500.0,0.00019921,2]
[321983182,1712673045134,-517.67,0.00019921,2]
[321983183,1712673045145,-500.0,0.00019921,2]
[321983184,1712673045154,-500.0,0.00019921,2]
[321983185,1712673045163,-500.0,0.00019921,2]
[321983186,1712673045172,-500.0,0.00019921,2]
[321983187,1712673045181,-500.0,0.00019921,2]
[321983188,1712673045190,-500.0,0.00019921,2]
[321983189,1712673045199,-500.0,0.00019921,2]
[321983190,1712673045208,-500.0,0.00019921,2]
[321983191,1712673045218,-694.42,0.00019921,2]
[321983192,1712673045228,-500.0,0.00019921,2]
[321983193,1712673045237,-500.0,0.00019921,2]
[321983194,1712673045247,-500.0,0.00019921,2]
[321983195,1712673045256,-500.0,0.00019921,2]
[321983196,1712673045265,-500.0,0.00019921,2]
[321983197,1712673045275,-223.23783224,0.00019921,2]
[321983198,1712673045285,-500.0,0.00019921,2]
[321983199,1712673045294,-500.0,0.00019921,2]
[321983200,1712673045304,-500.0,0.00019921,2]
[321983201,1712673045313,-500.0,0.00019921,2]
[321983202,1712673045323,-500.0,0.00019921,2]
[321983203,1712673045333,-500.0,0.00019921,2]
[321983204,1712673045344,-500.0,0.00019921,2]
[321983205,1712673045354,-500.0,0.00019921,2]
[321983206,1712673045365,-500.0,0.00019921,2]
[321983207,1712673045374,-500.0,0.00019921,2]
[321983208,1712673045384,-635.68,0.00019921,2]
[321983209,1712673045397,-500.0,0.00019921,2]
[321983210,1712673045407,-1123.94,0.00019921,2]
[321983211,1712673045418,-500.0,0.00019921,2]
[321983212,1712673045427,-631.8,0.00019921,2]
[321983213,1712673045438,-503.37,0.00019921,2]
[321983214,1712673045448,-671.09,0.00019921,2]
[321983215,1712673045458,-500.0,0.00019921,2]
[321983216,1712673045468,-823.54,0.00019921,2]
[321983217,1712673045480,-500.0,0.00019921,2]
[321983218,1712673045490,-500.0,0.00019921,2]
[321983219,1712673045500,-500.0,0.00019921,2]
[321983220,1712673045510,-541.03,0.00019921,2]
[321983221,1712673045519,-500.0,0.00019921,2]
[321983222,1712673045529,-500.0,0.00019921,2]
[321983223,1712673045539,-500.0,0.00019921,2]
[321983224,1712673045549,-633.62,0.00019921,2]
[321983225,1712673045558,-596.75,0.00019921,2]
[321983226,1712673045568,-668.22,0.00019921,2]
[321983227,1712673045579,-500.0,0.00019921,2]
[321983228,1712673045588,-843.11,0.00019921,2]
[321983229,1712673045598,-933.78,0.00019921,2]
[321983230,1712673045610,-500.0,0.00019921,2]
[321983231,1712673045621,-500.0,0.00019921,2]
[321983232,1712673045630,-500.0,0.00019921,2]
[321983233,1712673045641,-1111.73,0.00019921,2]
[321983234,1712673045651,-500.0,0.00019921,2]
[321983235,1712673045661,-852.6,0.00019921,2]
[321983236,1712673045671,-500.0,0.00019921,2]
[321983237,1712673045681,-663.39,0.00019921,2]
[321983238,1712673045691,-500.0,0.00019921,2]
[321983239,1712673045701,-1221.45,0.00019921,2]
[321983240,1712673045711,-500.0,0.00019921,2]
[321983241,1712673045721,-627.38,0.00019921,2]
[321983242,1712673045730,-500.0,0.00019921,2]
[321983243,1712673045740,-547.9,0.00019921,2]
[321983244,1712673045750,-657.38,0.00019921,2]
[321983245,1712673045759,-500.0,0.00019921,2]
[321983246,1712673045768,-1292.14,0.00019921,2]
[321983247,1712673045778,-536.62,0.00019921,2]
[321983249,1712673045788,-832.11,0.00019921,2]
[321983251,1712673045798,-500.0,0.00019921,2]
[321983253,1712673045808,-500.0,0.00019921,2]
[321983255,1712673045818,-510.74760743,0.00019921,2]
[321983257,1712673045828,-500.0,0.00019921,2]
[321983259,1712673045838,-500.0,0.00019921,2]
[321983261,1712673045847,-500.0,0.00019921,2]
[321983263,1712673045857,-923.79,0.00019921,2]
[321983265,1712673045866,-697.54,0.00019921,2]
[321983267,1712673045875,-897.1,0.00019921,2]
[321983269,1712673045885,-500.0,0.00019921,2]
[321983270,1712673045896,-500.0,0.00019921,2]
[321983273,1712673045906,-500.0,0.00019921,2]
[321983274,1712673045915,-1078.41,0.00019921,2]
[321983277,1712673045925,-210.55461355,0.00019921,2]
[321983279,1712673045934,-551.12,0.00019921,2]
[321983281,1712673045944,-500.0,0.00019921,2]
[321983283,1712673045953,-600.78,0.00019921,2]
[321983284,1712673045963,-603.54,0.00019921,2]
[321983285,1712673045972,-843.29,0.00019921,2]
[321983286,1712673045982,-791.5,0.00019921,2]
[321983287,1712673045991,-626.02,0.00019921,2]
[321983288,1712673046001,-500.0,0.00019921,2]
[321983289,1712673046011,-500.0,0.00019921,2]
[321983290,1712673046021,-2333.52,0.00019921,2]
[321983291,1712673046030,-1043.44,0.00019921,2]
[321983292,1712673046040,-500.0,0.00019921,2]
[321983293,1712673046049,-500.0,0.00019921,2]
[321983294,1712673046059,-500.0,0.00019921,2]
[321983295,1712673046069,-747.53,0.00019921,2]
[321983296,1712673046080,-603.09,0.00019921,2]
[321983297,1712673046089,-500.0,0.00019921,2]
[321983298,1712673046099,-500.0,0.00019921,2]
[321983299,1712673046108,-500.0,0.00019921,2]
[321983300,1712673046118,-500.0,0.00019921,2]
[321983301,1712673046127,-213.98900149,0.00019921,2]
[321983302,1712673046137,-500.0,0.00019921,2]
[321983303,1712673046150,-500.0,0.00019921,2]
[321983304,1712673046159,-963.48,0.00019921,2]
[321983305,1712673046169,-500.0,0.00019921,2]
[321983306,1712673046178,-790.33,0.00019921,2]
[321983307,1712673046188,-500.0,0.00019921,2]
[321983308,1712673046197,-500.0,0.00019921,2]
[321983309,1712673046206,-500.0,0.00019921,2]
[321983310,1712673046216,-1616.37,0.00019921,2]
[321983311,1712673046226,-1471.69,0.00019921,2]
[321983312,1712673046235,-500.0,0.00019921,2]
[321983313,1712673046246,-500.0,0.00019921,2]
[321983314,1712673046256,-547.97,0.00019921,2]
[321983315,1712673046266,-500.0,0.00019921,2]
[321983316,1712673046276,-635.6,0.00019921,2]
[321983317,1712673046286,-500.0,0.00019921,2]
[321983318,1712673046295,-500.0,0.00019921,2]
[321983319,1712673046305,-500.0,0.00019921,2]
[321983320,1712673046315,-195.15862983,0.00019921,2]
[321983321,1712673046326,-1427.59,0.00019921,2]
[321983322,1712673046336,-577.34,0.00019921,2]
[321983323,1712673046346,-500.0,0.00019921,2]
[321983324,1712673046357,-500.0,0.00019921,2]
[321983325,1712673046367,-500.0,0.00019921,2]
[321983326,1712673046377,-500.0,0.00019921,2]
[321983327,1712673046387,-817.26,0.00019921,2]
[321983328,1712673046400,-500.0,0.00019921,2]
[321983329,1712673046410,-957.96,0.00019921,2]
[321983330,1712673046420,-500.0,0.00019921,2]
[321983331,1712673046429,-2342.26,0.00019921,2]
[321983332,1712673046439,-500.0,0.00019921,2]
[321983333,1712673046449,-469.18,0.00019921,2]
[321983334,1712673046459,-500.0,0.00019921,2]
[321983335,1712673046469,-1704.1,0.00019921,2]
[321983336,1712673046481,-500.0,0.00019921,2]
[321983337,1712673046490,-2324.62,0.00019921,2]
[321983338,1712673046500,-1290.55,0.00019921,2]
[321983339,1712673046510,-500.0,0.00019921,2]
[321983340,1712673046520,-500.0,0.00019921,2]
[321983341,1712673046530,-545.93,0.00019921,2]
[321983342,1712673046540,-206.31586366,0.00019921,2]
[321983343,1712673046550,-2247.07,0.00019921,2]
[321983344,1712673046560,-848.38,0.00019921,2]
[321983345,1712673046572,-500.0,0.00019921,2]
[321983346,1712673046585,-1229.91,0.00019921,2]
[321983347,1712673046595,-744.27,0.00019921,2]
[321983348,1712673046605,-660.82,0.00019921,2]
[321983349,1712673046615,-2561.61,0.00019921,2]
[321983350,1712673046626,-984.35,0.00019921,2]
[321983351,1712673046636,-354.97613511,0.00019921,2]
[321983352,1712673046647,-1345.92,0.00019921,2]
[321983353,1712673046657,-3955.76,0.00019921,2]
[321983354,1712673046666,-990.99,0.00019921,2]
[321983355,1712673046676,-500.0,0.00019921,2]
[321983356,1712673046686,-500.0,0.00019921,2]
[321983357,1712673046696,-1438.9,0.00019921,2]
[321983358,1712673046706,-768.81,0.00019921,2]
[321983359,1712673046716,-2389.13,0.00019921,2]
[321983360,1712673046725,-7729.52,0.00019921,2]
[321983361,1712673046734,-500.0,0.00019921,2]
[321983362,1712673046744,-500.0,0.00019921,2]
[321983363,1712673046753,-511.93,0.00019921,2]
[321983364,1712673046762,-1018.62,0.00019921,2]
[321983365,1712673046772,-4481.77,0.00019921,2]
[321983366,1712673046782,-1870.76,0.00019921,2]
[321983367,1712673046791,-500.0,0.00019921,2]
[321983368,1712673046800,-1583.59,0.00019921,2]
[321983369,1712673046810,-462.79904854,0.00019921,2]
[321983370,1712673046820,-500.0,0.00019921,2]
[321983371,1712673046830,-11328.73,0.00019921,2]
[321983372,1712673046839,-6539.18,0.00019921,2]
[321983373,1712673046849,-500.0,0.00019921,2]
[321983374,1712673046859,-500.0,0.00019921,2]
[321983375,1712673046868,-1713.02,0.00019921,2]
[321983376,1712673046877,-7732.93,0.00019921,2]
[321983377,1712673046887,-1559.45,0.00019921,2]
[321983378,1712673046901,-506.61,0.00019921,2]